[Event "Titled Tuesday Blitz May 03 Late 2022"]
[White "Zakhartsov, Vladimir"]
[Black "Bibasa, Bob"]
[WhiteFideId "4145097"]
[BlackFideId "10000240"]
[WhiteElo "2491"]
[BlackElo "2056"]
[Result "1-0"]
[Round "04"]
[TimeControl "180+1"]
[Date "2022.05.03"]
[WhiteClock "0:00:10"]
[BlackClock "0:00:03"]

1. c4 {[%clk 0:03:00]}  c5 {[%clk 0:02:59]} 2. Nf3 {[%clk 0:02:59]}  g6 {[%clk 0:02:59]} 3. Nc3 {[%clk 0:02:57]}  Bg7 {[%clk 0:02:58]} 4. e3 {[%clk 0:02:57]}  Nf6 {[%clk 0:02:58]} 5. d4 {[%clk 0:02:57]}  cxd4 {[%clk 0:02:59]} 6. exd4 {[%clk 0:02:55]}  d5 {[%clk 0:02:59]} 7. c5 {[%clk 0:02:54]}  O-O {[%clk 0:02:59]} 8. h3 {[%clk 0:02:49]}  Nc6 {[%clk 0:02:59]} 9. Bd3 {[%clk 0:02:47]}  Ne4 {[%clk 0:02:56]} 10. Be3 {[%clk 0:02:46]}  Bf5 {[%clk 0:02:53]} 11. O-O {[%clk 0:02:44]}  Nxc3 {[%clk 0:02:45]} 12. bxc3 {[%clk 0:02:41]}  Bxd3 {[%clk 0:02:46]} 13. Qxd3 {[%clk 0:02:42]}  Qd7 {[%clk 0:02:44]} 14. Bf4 {[%clk 0:02:41]}  Rfe8 {[%clk 0:02:42]} 15. Rfe1 {[%clk 0:02:41]}  f6 {[%clk 0:02:38]} 16. Bg3 {[%clk 0:02:20]}  e5 {[%clk 0:02:36]} 17. Qb5 {[%clk 0:02:19]}  e4 {[%clk 0:02:35]} 18. Nd2 {[%clk 0:02:19]}  f5 {[%clk 0:02:29]} 19. Rab1 {[%clk 0:02:08]}  Bh6 {[%clk 0:02:27]} 20. Nf1 {[%clk 0:01:56]}  f4 {[%clk 0:02:26]} 21. Bh2 {[%clk 0:01:57]}  Re7 {[%clk 0:02:24]} 22. Nd2 {[%clk 0:01:44]}  Rf8 {[%clk 0:02:14]} 23. Nb3 {[%clk 0:01:34]}  a6 {[%clk 0:02:02]} 24. Qf1 {[%clk 0:01:30]}  g5 {[%clk 0:01:58]} 25. c4 {[%clk 0:01:30]}  Kh8 {[%clk 0:01:47]} 26. cxd5 {[%clk 0:01:29]}  Qxd5 {[%clk 0:01:48]} 27. Rbd1 {[%clk 0:01:30]}  Nb4 {[%clk 0:01:44]} 28. Qe2 {[%clk 0:01:27]}  Rfe8 {[%clk 0:01:33]} 29. Nc1 {[%clk 0:01:24]}  Bg7 {[%clk 0:01:28]} 30. Qh5 {[%clk 0:01:20]}  h6 {[%clk 0:01:22]} 31. a3 {[%clk 0:01:19]}  Nc2 {[%clk 0:01:20]} 32. Rf1 {[%clk 0:01:13]}  Rf8 {[%clk 0:00:51]} 33. Ne2 {[%clk 0:01:06]}  f3 {[%clk 0:00:43]} 34. Nf4 {[%clk 0:01:00]}  Rxf4 {[%clk 0:00:25]} 35. Bxf4 {[%clk 0:01:00]}  Nxd4 {[%clk 0:00:23]} 36. Be3 {[%clk 0:00:56]}  Ne2+ {[%clk 0:00:20]} 37. Kh2 {[%clk 0:00:52]}  Qf5 {[%clk 0:00:20]} 38. g3 {[%clk 0:00:45]}  Kh7 {[%clk 0:00:19]} 39. Rd6 {[%clk 0:00:43]}  Re6 {[%clk 0:00:18]} 40. Qg4 {[%clk 0:00:35]}  Qxg4 {[%clk 0:00:13]} 41. hxg4 {[%clk 0:00:36]}  Re7 {[%clk 0:00:12]} 42. Rfd1 {[%clk 0:00:30]}  Kg8 {[%clk 0:00:06]} 43. Rd8+ {[%clk 0:00:30]}  Kf7 {[%clk 0:00:06]} 44. R1d7 {[%clk 0:00:26]}  Be5 {[%clk 0:00:03]} 45. Rxe7+ {[%clk 0:00:11]}  Kxe7 {[%clk 0:00:04]} 46. Rg8 {[%clk 0:00:09]}  Kf7 {[%clk 0:00:04]} 47. Rc8 {[%clk 0:00:09]}  Ke7 {[%clk 0:00:03]} 48. c6 {[%clk 0:00:09]}  bxc6 {[%clk 0:00:03]} 49. Rxc6 {[%clk 0:00:10]}  Nc3 {[%clk 0:00:03]} 50. Rxa6 {[%clk 0:00:09]}  Nd5 {[%clk 0:00:04]} 51. Bc5+ {[%clk 0:00:09]}  Kf7 {[%clk 0:00:04]} 52. Rxh6 {[%clk 0:00:09]}  Nf6 {[%clk 0:00:04]} 53. Kh3 {[%clk 0:00:07]}  Kg7 {[%clk 0:00:05]} 54. Rh5 {[%clk 0:00:06]}  Nxh5 {[%clk 0:00:04]} 55. gxh5 {[%clk 0:00:07]}  Kh6 {[%clk 0:00:05]} 56. Kg4 {[%clk 0:00:07]}  Bc7 {[%clk 0:00:03]} 57. a4 {[%clk 0:00:07]}  Bb8 {[%clk 0:00:02]} 58. Be3 {[%clk 0:00:07]}  Bd6 {[%clk 0:00:01]} 59. Bxg5+ {[%clk 0:00:08]}  Kg7 {[%clk 0:00:01]} 60. Be3 {[%clk 0:00:08]}  Kf6 {[%clk 0:00:01]} 61. h6 {[%clk 0:00:08]}  Kg6 {[%clk 0:00:01]} 62. a5 {[%clk 0:00:09]}  Bc7 {[%clk 0:00:01]} 63. a6 {[%clk 0:00:09]}  Bb8 {[%clk 0:00:02]} 64. a7 {[%clk 0:00:09]}  Bxa7 {[%clk 0:00:02]} 65. Bxa7 {[%clk 0:00:10]}  Kxh6 {[%clk 0:00:03]} 66. Kf5 {[%clk 0:00:10]} 1-0


[Site "https://www.chess.com"]

[Event "Titled Tuesday Blitz May 03 Late 2022"]
[White "Zivkovic, Nemanja"]
[Black "Khanin, Semen"]
[WhiteFideId "942154"]
[BlackFideId "4111990"]
[WhiteElo "2364"]
[BlackElo "2442"]
[Result "0-1"]
[Round "04"]
[TimeControl "180+1"]
[Date "2022.05.03"]
[WhiteClock "0:00:03"]
[BlackClock "0:00:04"]

1. e4 {[%clk 0:02:54]}  c5 {[%clk 0:03:00]} 2. Nf3 {[%clk 0:02:53]}  e6 {[%clk 0:03:01]} 3. c3 {[%clk 0:02:53]}  d5 {[%clk 0:03:00]} 4. d3 {[%clk 0:02:53]}  Nf6 {[%clk 0:02:58]} 5. Nbd2 {[%clk 0:02:53]}  Nc6 {[%clk 0:02:58]} 6. Be2 {[%clk 0:02:51]}  Qc7 {[%clk 0:02:53]} 7. O-O {[%clk 0:02:51]}  Be7 {[%clk 0:02:52]} 8. a3 {[%clk 0:02:51]}  a5 {[%clk 0:02:52]} 9. a4 {[%clk 0:02:51]}  O-O {[%clk 0:02:52]} 10. Qc2 {[%clk 0:02:52]}  b6 {[%clk 0:02:52]} 11. Nb1 {[%clk 0:02:52]}  Bb7 {[%clk 0:02:51]} 12. Na3 {[%clk 0:02:52]}  Rac8 {[%clk 0:02:50]} 13. Re1 {[%clk 0:02:49]}  Rfd8 {[%clk 0:02:50]} 14. Nb5 {[%clk 0:02:48]}  Qb8 {[%clk 0:02:50]} 15. Bg5 {[%clk 0:02:44]}  c4 {[%clk 0:02:17]} 16. Bxf6 {[%clk 0:02:13]}  Bxf6 {[%clk 0:02:13]} 17. exd5 {[%clk 0:02:12]}  Rxd5 {[%clk 0:01:58]} 18. dxc4 {[%clk 0:02:07]}  Rdd8 {[%clk 0:01:54]} 19. Rad1 {[%clk 0:02:03]}  g6 {[%clk 0:01:53]} 20. g3 {[%clk 0:02:03]}  Ne7 {[%clk 0:01:51]} 21. Rxd8+ {[%clk 0:01:59]}  Rxd8 {[%clk 0:01:52]} 22. Rd1 {[%clk 0:01:59]}  Nf5 {[%clk 0:01:40]} 23. Rxd8+ {[%clk 0:01:55]}  Qxd8 {[%clk 0:01:41]} 24. Qd1 {[%clk 0:01:56]}  Qe7 {[%clk 0:01:39]} 25. Bf1 {[%clk 0:01:49]}  Qc5 {[%clk 0:01:34]} 26. Qd3 {[%clk 0:01:43]}  h5 {[%clk 0:01:26]} 27. Bg2 {[%clk 0:01:37]}  h4 {[%clk 0:01:26]} 28. g4 {[%clk 0:01:30]}  h3 {[%clk 0:01:16]} 29. Bxh3 {[%clk 0:01:17]}  Ne3 {[%clk 0:01:16]} 30. Nbd4 {[%clk 0:01:05]}  Nxc4 {[%clk 0:01:14]} 31. b3 {[%clk 0:00:57]}  Ne5 {[%clk 0:01:13]} 32. Nxe5 {[%clk 0:00:56]}  Qxe5 {[%clk 0:01:12]} 33. Bg2 {[%clk 0:00:46]}  Qe1+ {[%clk 0:01:10]} 34. Qf1 {[%clk 0:00:46]}  Qxc3 {[%clk 0:01:06]} 35. Bxb7 {[%clk 0:00:40]}  Bxd4 {[%clk 0:01:06]} 36. Qd1 {[%clk 0:00:38]}  Kg7 {[%clk 0:00:53]} 37. Bf3 {[%clk 0:00:37]}  Qb2 {[%clk 0:00:49]} 38. Be2 {[%clk 0:00:35]}  Bc5 {[%clk 0:00:49]} 39. Qd3 {[%clk 0:00:34]}  e5 {[%clk 0:00:45]} 40. Kg2 {[%clk 0:00:34]}  Qc1 {[%clk 0:00:43]} 41. h4 {[%clk 0:00:33]}  Qf4 {[%clk 0:00:42]} 42. Qf3 {[%clk 0:00:31]}  Qd4 {[%clk 0:00:42]} 43. Bc4 {[%clk 0:00:25]}  Qd7 {[%clk 0:00:35]} 44. Kh3 {[%clk 0:00:21]}  Qe7 {[%clk 0:00:30]} 45. Kg2 {[%clk 0:00:15]}  e4 {[%clk 0:00:29]} 46. Qf4 {[%clk 0:00:12]}  Bd6 {[%clk 0:00:27]} 47. Qg5 {[%clk 0:00:12]}  Qc7 {[%clk 0:00:17]} 48. h5 {[%clk 0:00:11]}  Bf4 {[%clk 0:00:16]} 49. h6+ {[%clk 0:00:08]}  Kh7 {[%clk 0:00:16]} 50. Qf6 {[%clk 0:00:08]}  Kxh6 {[%clk 0:00:09]} 51. Bxf7 {[%clk 0:00:08]}  Qd6 {[%clk 0:00:10]} 52. Qh8+ {[%clk 0:00:08]}  Kg5 {[%clk 0:00:10]} 53. Qg7 {[%clk 0:00:07]}  Be5 {[%clk 0:00:08]} 54. Qg8 {[%clk 0:00:06]}  e3 {[%clk 0:00:07]} 55. fxe3 {[%clk 0:00:06]}  Qd2+ {[%clk 0:00:06]} 56. Kf1 {[%clk 0:00:06]}  Qd1+ {[%clk 0:00:06]} 57. Kf2 {[%clk 0:00:07]}  Qd2+ {[%clk 0:00:06]} 58. Kf1 {[%clk 0:00:08]}  Kh4 {[%clk 0:00:04]} 59. Bd5 {[%clk 0:00:06]}  Kg3 {[%clk 0:00:04]} 60. Bc4 {[%clk 0:00:03]}  Qf2# {[%clk 0:00:04]} 0-1


[Site "https://www.chess.com"]

[Event "Titled Tuesday Blitz May 03 Late 2022"]
[White "Al-Tarboush, Ward"]
[Black "Cabarkapa, Novak"]
[WhiteFideId "7601450"]
[BlackFideId "943746"]
[WhiteElo "2276"]
[BlackElo "2443"]
[Result "1-0"]
[Round "05"]
[TimeControl "180+1"]
[Date "2022.05.03"]
[WhiteClock "0:00:08"]
[BlackClock "0:00:02"]

1. e4 {[%clk 0:02:58]}  d5 {[%clk 0:02:59]} 2. exd5 {[%clk 0:02:57]}  Qxd5 {[%clk 0:03:00]} 3. Nc3 {[%clk 0:02:57]}  Qd6 {[%clk 0:03:00]} 4. d4 {[%clk 0:02:56]}  Nf6 {[%clk 0:03:01]} 5. Nf3 {[%clk 0:02:55]}  g6 {[%clk 0:03:01]} 6. Ne5 {[%clk 0:02:55]}  Bg7 {[%clk 0:03:00]} 7. Nc4 {[%clk 0:02:55]}  Qd8 {[%clk 0:02:57]} 8. Bf4 {[%clk 0:02:55]}  O-O {[%clk 0:02:57]} 9. Be2 {[%clk 0:02:55]}  Nc6 {[%clk 0:02:55]} 10. d5 {[%clk 0:02:39]}  Nb4 {[%clk 0:02:51]} 11. Bf3 {[%clk 0:02:39]}  Bf5 {[%clk 0:02:51]} 12. Ne3 {[%clk 0:02:35]}  Bd7 {[%clk 0:02:42]} 13. a3 {[%clk 0:02:32]}  Na6 {[%clk 0:02:42]} 14. O-O {[%clk 0:02:32]}  Ne8 {[%clk 0:02:33]} 15. Re1 {[%clk 0:02:30]}  Nc5 {[%clk 0:02:29]} 16. Qd2 {[%clk 0:02:29]}  a5 {[%clk 0:02:19]} 17. Rad1 {[%clk 0:02:27]}  a4 {[%clk 0:02:19]} 18. Nc4 {[%clk 0:02:17]}  Nd6 {[%clk 0:02:15]} 19. Ne5 {[%clk 0:02:15]}  Bf5 {[%clk 0:02:14]} 20. Qe3 {[%clk 0:02:09]}  Ra5 {[%clk 0:02:07]} 21. Re2 {[%clk 0:02:04]}  h5 {[%clk 0:01:59]} 22. h3 {[%clk 0:02:03]}  f6 {[%clk 0:01:53]} 23. Nd3 {[%clk 0:02:01]}  Nxd3 {[%clk 0:01:42]} 24. cxd3 {[%clk 0:02:02]}  g5 {[%clk 0:01:38]} 25. Bh2 {[%clk 0:01:59]}  Bg6 {[%clk 0:01:30]} 26. Qxe7 {[%clk 0:01:51]}  Ra8 {[%clk 0:01:16]} 27. Qxd8 {[%clk 0:01:48]}  Raxd8 {[%clk 0:01:17]} 28. Re7 {[%clk 0:01:48]}  Rf7 {[%clk 0:01:16]} 29. Rxf7 {[%clk 0:01:46]}  Kxf7 {[%clk 0:01:14]} 30. Ne4 {[%clk 0:01:42]}  Nb5 {[%clk 0:01:08]} 31. Nc5 {[%clk 0:01:39]}  Nd4 {[%clk 0:01:03]} 32. Be4 {[%clk 0:01:20]}  f5 {[%clk 0:00:33]} 33. Bxc7 {[%clk 0:01:19]}  Ra8 {[%clk 0:00:27]} 34. d6 {[%clk 0:01:15]}  fxe4 {[%clk 0:00:24]} 35. d7 {[%clk 0:01:14]}  Bf6 {[%clk 0:00:19]} 36. dxe4 {[%clk 0:01:13]}  Nc6 {[%clk 0:00:19]} 37. e5 {[%clk 0:01:08]}  Be7 {[%clk 0:00:15]} 38. e6+ {[%clk 0:01:08]}  Kf6 {[%clk 0:00:15]} 39. Nxb7 {[%clk 0:01:03]}  Kxe6 {[%clk 0:00:13]} 40. d8=Q {[%clk 0:01:02]}  Nxd8 {[%clk 0:00:13]} 41. Nxd8+ {[%clk 0:00:58]}  Kf6 {[%clk 0:00:13]} 42. Nc6 {[%clk 0:00:54]}  Rc8 {[%clk 0:00:13]} 43. Be5+ {[%clk 0:00:48]}  Ke6 {[%clk 0:00:12]} 44. Nxe7 {[%clk 0:00:40]}  Kxe7 {[%clk 0:00:13]} 45. Bc3 {[%clk 0:00:39]}  Bc2 {[%clk 0:00:11]} 46. Re1+ {[%clk 0:00:39]}  Kf7 {[%clk 0:00:11]} 47. Re5 {[%clk 0:00:39]}  Kg6 {[%clk 0:00:08]} 48. Bd2 {[%clk 0:00:39]}  Bf5 {[%clk 0:00:07]} 49. Ra5 {[%clk 0:00:38]}  g4 {[%clk 0:00:06]} 50. hxg4 {[%clk 0:00:36]}  hxg4 {[%clk 0:00:07]} 51. Rxa4 {[%clk 0:00:34]}  Rc2 {[%clk 0:00:08]} 52. Ra6+ {[%clk 0:00:33]}  Kf7 {[%clk 0:00:06]} 53. Bc3 {[%clk 0:00:32]}  Be4 {[%clk 0:00:07]} 54. Rf6+ {[%clk 0:00:27]}  Ke7 {[%clk 0:00:07]} 55. Rf4 {[%clk 0:00:27]}  Re2 {[%clk 0:00:05]} 56. Rxg4 {[%clk 0:00:27]}  Ke6 {[%clk 0:00:06]} 57. a4 {[%clk 0:00:25]}  Kf5 {[%clk 0:00:04]} 58. Rg8 {[%clk 0:00:25]}  Rc2 {[%clk 0:00:05]} 59. a5 {[%clk 0:00:24]}  Rc1+ {[%clk 0:00:05]} 60. Kh2 {[%clk 0:00:23]}  Ra1 {[%clk 0:00:06]} 61. Rf8+ {[%clk 0:00:22]}  Kg6 {[%clk 0:00:06]} 62. Rf6+ {[%clk 0:00:22]}  Kg5 {[%clk 0:00:06]} 63. f3 {[%clk 0:00:20]}  Bf5 {[%clk 0:00:06]} 64. g4 {[%clk 0:00:18]}  Bg6 {[%clk 0:00:05]} 65. Rb6 {[%clk 0:00:12]}  Bd3 {[%clk 0:00:03]} 66. Kg3 {[%clk 0:00:09]}  Rg1+ {[%clk 0:00:02]} 67. Kf2 {[%clk 0:00:09]}  Rd1 {[%clk 0:00:02]} 68. a6 {[%clk 0:00:08]} 1-0


[Site "https://www.chess.com"]

[Event "Titled Tuesday Blitz May 03 Late 2022"]
[White "Bas Mas, Jose Joaquin"]
[Black "Sargsyan, Anna M."]
[WhiteFideId "22219064"]
[BlackFideId "13308130"]
[WhiteElo "2212"]
[BlackElo "2271"]
[Result "0-1"]
[Round "05"]
[TimeControl "180+1"]
[Date "2022.05.03"]
[WhiteClock "0:00:07"]
[BlackClock "0:00:06"]

1. e4 {[%clk 0:03:00]}  c6 {[%clk 0:02:59]} 2. Nc3 {[%clk 0:03:00]}  d5 {[%clk 0:02:56]} 3. Nf3 {[%clk 0:03:01]}  Bg4 {[%clk 0:02:56]} 4. h3 {[%clk 0:03:00]}  Bxf3 {[%clk 0:02:57]} 5. Qxf3 {[%clk 0:03:00]}  Nf6 {[%clk 0:02:57]} 6. e5 {[%clk 0:02:56]}  Nfd7 {[%clk 0:02:57]} 7. d4 {[%clk 0:02:54]}  e6 {[%clk 0:02:57]} 8. Qg3 {[%clk 0:02:42]}  c5 {[%clk 0:02:51]} 9. Bd3 {[%clk 0:02:41]}  cxd4 {[%clk 0:02:49]} 10. Ne2 {[%clk 0:02:42]}  Nc6 {[%clk 0:02:49]} 11. Bf4 {[%clk 0:02:35]}  h6 {[%clk 0:02:46]} 12. h4 {[%clk 0:02:32]}  Qb6 {[%clk 0:02:45]} 13. O-O {[%clk 0:02:21]}  O-O-O {[%clk 0:02:23]} 14. a3 {[%clk 0:02:21]}  Kb8 {[%clk 0:02:20]} 15. b4 {[%clk 0:02:21]}  Be7 {[%clk 0:02:03]} 16. Qxg7 {[%clk 0:02:13]}  Bxh4 {[%clk 0:01:25]} 17. Qxf7 {[%clk 0:02:09]}  Ncxe5 {[%clk 0:01:12]} 18. Bxe5+ {[%clk 0:02:04]}  Nxe5 {[%clk 0:01:07]} 19. Qf4 {[%clk 0:02:04]}  Qc7 {[%clk 0:00:59]} 20. Qxh4 {[%clk 0:01:51]}  Rdg8 {[%clk 0:01:00]} 21. Ng3 {[%clk 0:01:31]}  h5 {[%clk 0:01:00]} 22. Qxd4 {[%clk 0:01:25]}  h4 {[%clk 0:00:56]} 23. Qf4 {[%clk 0:01:06]}  Rg4 {[%clk 0:00:26]} 24. Qf6 {[%clk 0:01:00]}  Rhg8 {[%clk 0:00:26]} 25. Bh7 {[%clk 0:00:51]}  Qxh7 {[%clk 0:00:18]} 26. Qxe5+ {[%clk 0:00:50]}  Ka8 {[%clk 0:00:19]} 27. Ne2 {[%clk 0:00:32]}  Rxg2+ {[%clk 0:00:13]} 28. Kh1 {[%clk 0:00:32]}  R2g5 {[%clk 0:00:11]} 29. Qh2 {[%clk 0:00:26]}  Qxc2 {[%clk 0:00:07]} 30. Nf4 {[%clk 0:00:20]}  e5 {[%clk 0:00:04]} 31. Rac1 {[%clk 0:00:18]}  Qe4+ {[%clk 0:00:01]} 32. f3 {[%clk 0:00:18]}  Qxf4 {[%clk 0:00:02]} 33. Qxf4 {[%clk 0:00:16]}  exf4 {[%clk 0:00:02]} 34. Rfd1 {[%clk 0:00:13]}  Rg3 {[%clk 0:00:02]} 35. Rd2 {[%clk 0:00:10]}  Rh3+ {[%clk 0:00:02]} 36. Rh2 {[%clk 0:00:10]}  Rxf3 {[%clk 0:00:02]} 37. Rxh4 {[%clk 0:00:09]}  a6 {[%clk 0:00:03]} 38. Rd1 {[%clk 0:00:07]}  Rxa3 {[%clk 0:00:01]} 39. Rxd5 {[%clk 0:00:07]}  f3 {[%clk 0:00:01]} 40. Rf4 {[%clk 0:00:06]}  Ra1+ {[%clk 0:00:01]} 41. Kh2 {[%clk 0:00:06]}  Ra2+ {[%clk 0:00:01]} 42. Kh3 {[%clk 0:00:06]}  f2 {[%clk 0:00:02]} 43. Rdf5 {[%clk 0:00:05]}  Ra3+ {[%clk 0:00:02]} 44. Kh2 {[%clk 0:00:06]}  Rb3 {[%clk 0:00:02]} 45. b5 {[%clk 0:00:04]}  Rxb5 {[%clk 0:00:02]} 46. Rf8+ {[%clk 0:00:03]}  Rxf8 {[%clk 0:00:01]} 47. Rxf8+ {[%clk 0:00:04]}  Ka7 {[%clk 0:00:02]} 48. Rxf2 {[%clk 0:00:04]}  a5 {[%clk 0:00:02]} 49. Kg1 {[%clk 0:00:05]}  a4 {[%clk 0:00:02]} 50. Kf1 {[%clk 0:00:06]}  Rb1+ {[%clk 0:00:03]} 51. Kg2 {[%clk 0:00:04]}  b5 {[%clk 0:00:03]} 52. Kf3 {[%clk 0:00:04]}  Rb3+ {[%clk 0:00:03]} 53. Ke4 {[%clk 0:00:05]}  a3 {[%clk 0:00:03]} 54. Kd4 {[%clk 0:00:05]}  Rb2 {[%clk 0:00:03]} 55. Rf7+ {[%clk 0:00:05]}  Kb6 {[%clk 0:00:04]} 56. Rf6+ {[%clk 0:00:06]}  Ka5 {[%clk 0:00:04]} 57. Rf8 {[%clk 0:00:06]}  Kb4 {[%clk 0:00:04]} 58. Ra8 {[%clk 0:00:06]}  Rd2+ {[%clk 0:00:04]} 59. Ke3 {[%clk 0:00:06]}  Rd7 {[%clk 0:00:05]} 60. Ke2 {[%clk 0:00:06]}  Kb3 {[%clk 0:00:05]} 61. Ra5 {[%clk 0:00:06]}  b4 {[%clk 0:00:06]} 62. Ra6 {[%clk 0:00:06]}  Kb2 {[%clk 0:00:06]} 63. Ra7 {[%clk 0:00:06]}  Rxa7 {[%clk 0:00:05]} 64. Kd2 {[%clk 0:00:07]}  a2 {[%clk 0:00:06]} 0-1


[Site "https://www.chess.com"]

[Event "Titled Tuesday Blitz May 03 Late 2022"]
[White "Bibasa, Bob"]
[Black "Petrova, Irina"]
[WhiteFideId "10000240"]
[BlackFideId "14124122"]
[WhiteElo "2056"]
[BlackElo "1993"]
[Result "1-0"]
[Round "05"]
[TimeControl "180+1"]
[Date "2022.05.03"]
[WhiteClock "0:01:34"]
[BlackClock "0:00:55"]

1. e4 {[%clk 0:03:00]}  c5 {[%clk 0:03:00]} 2. Nf3 {[%clk 0:03:01]}  Nc6 {[%clk 0:03:00]} 3. Bb5 {[%clk 0:03:01]}  g6 {[%clk 0:02:59]} 4. O-O {[%clk 0:02:59]}  Bg7 {[%clk 0:02:59]} 5. Bxc6 {[%clk 0:03:00]}  dxc6 {[%clk 0:02:59]} 6. d3 {[%clk 0:02:59]}  Nf6 {[%clk 0:02:58]} 7. Nc3 {[%clk 0:02:59]}  Nd7 {[%clk 0:02:57]} 8. Be3 {[%clk 0:02:59]}  e5 {[%clk 0:02:54]} 9. Qd2 {[%clk 0:02:56]}  h6 {[%clk 0:02:53]} 10. a3 {[%clk 0:02:50]}  b6 {[%clk 0:02:49]} 11. b4 {[%clk 0:02:49]}  cxb4 {[%clk 0:02:44]} 12. axb4 {[%clk 0:02:49]}  Nf8 {[%clk 0:02:44]} 13. b5 {[%clk 0:02:47]}  Bb7 {[%clk 0:02:30]} 14. bxc6 {[%clk 0:02:37]}  Bxc6 {[%clk 0:02:31]} 15. Rfe1 {[%clk 0:02:27]}  Ne6 {[%clk 0:02:31]} 16. Ne2 {[%clk 0:02:07]}  Nd4 {[%clk 0:02:23]} 17. Nexd4 {[%clk 0:01:58]}  exd4 {[%clk 0:02:24]} 18. Bf4 {[%clk 0:01:59]}  g5 {[%clk 0:02:20]} 19. Be5 {[%clk 0:01:56]}  O-O {[%clk 0:02:16]} 20. Bxg7 {[%clk 0:01:53]}  Kxg7 {[%clk 0:02:17]} 21. Qb4 {[%clk 0:01:54]}  f5 {[%clk 0:02:10]} 22. Nxd4 {[%clk 0:01:52]}  Bd7 {[%clk 0:02:06]} 23. exf5 {[%clk 0:01:52]}  Bxf5 {[%clk 0:02:01]} 24. Re7+ {[%clk 0:01:51]}  Kg6 {[%clk 0:01:18]} 25. Rae1 {[%clk 0:01:41]}  Rf6 {[%clk 0:00:59]} 26. Nxf5 {[%clk 0:01:35]}  Rxf5 {[%clk 0:00:58]} 27. R1e6+ {[%clk 0:01:34]}  Rf6 {[%clk 0:00:55]} 28. Qe4+ {[%clk 0:01:34]} 1-0


[Site "https://www.chess.com"]

[Event "Titled Tuesday Blitz May 03 Late 2022"]
[White "Diaz, Fernando"]
[Black "Zhang, Derek"]
[WhiteFideId "3701255"]
[BlackFideId "2087871"]
[WhiteElo "1934"]
[BlackElo "2085"]
[Result "0-1"]
[Round "05"]
[TimeControl "180+1"]
[Date "2022.05.03"]
[WhiteClock "0:00:06"]
[BlackClock "0:00:05"]

1. e4 {[%clk 0:02:59]}  e6 {[%clk 0:02:59]} 2. d4 {[%clk 0:02:58]}  d5 {[%clk 0:03:00]} 3. Nc3 {[%clk 0:02:55]}  Bb4 {[%clk 0:02:59]} 4. e5 {[%clk 0:02:55]}  c5 {[%clk 0:02:59]} 5. a3 {[%clk 0:02:56]}  Bxc3+ {[%clk 0:03:00]} 6. bxc3 {[%clk 0:02:55]}  Qa5 {[%clk 0:03:00]} 7. Qd2 {[%clk 0:02:51]}  Ne7 {[%clk 0:02:59]} 8. a4 {[%clk 0:02:49]}  Nbc6 {[%clk 0:02:59]} 9. Nf3 {[%clk 0:02:48]}  Bd7 {[%clk 0:02:57]} 10. Be2 {[%clk 0:02:47]}  O-O {[%clk 0:02:53]} 11. O-O {[%clk 0:02:46]}  cxd4 {[%clk 0:02:52]} 12. cxd4 {[%clk 0:02:46]}  Qxd2 {[%clk 0:02:51]} 13. Bxd2 {[%clk 0:02:47]}  Rac8 {[%clk 0:02:46]} 14. a5 {[%clk 0:02:40]}  Rc7 {[%clk 0:02:35]} 15. g4 {[%clk 0:02:10]}  f6 {[%clk 0:02:32]} 16. exf6 {[%clk 0:02:03]}  Rxf6 {[%clk 0:02:33]} 17. Ra3 {[%clk 0:01:49]}  Nc8 {[%clk 0:02:22]} 18. g5 {[%clk 0:01:25]}  Rf7 {[%clk 0:02:21]} 19. Kg2 {[%clk 0:01:20]}  Nd6 {[%clk 0:02:21]} 20. Bd3 {[%clk 0:01:12]}  Rf8 {[%clk 0:02:03]} 21. Re1 {[%clk 0:00:52]}  Bc8 {[%clk 0:01:28]} 22. h4 {[%clk 0:00:47]}  Rcf7 {[%clk 0:01:26]} 23. Be2 {[%clk 0:00:42]}  Re7 {[%clk 0:01:17]} 24. Re3 {[%clk 0:00:34]}  Nf5 {[%clk 0:01:12]} 25. Rd3 {[%clk 0:00:32]}  Bd7 {[%clk 0:01:11]} 26. c3 {[%clk 0:00:24]}  Nxa5 {[%clk 0:01:07]} 27. Bc1 {[%clk 0:00:23]}  Nc4 {[%clk 0:00:59]} 28. Rdd1 {[%clk 0:00:23]}  Nfd6 {[%clk 0:01:00]} 29. Ne5 {[%clk 0:00:23]}  Bc6 {[%clk 0:00:54]} 30. Nxc4 {[%clk 0:00:21]}  dxc4+ {[%clk 0:00:53]} 31. Kg3 {[%clk 0:00:21]}  Ne4+ {[%clk 0:00:50]} 32. Kh3 {[%clk 0:00:17]}  Nxf2+ {[%clk 0:00:50]} 33. Kg3 {[%clk 0:00:17]}  Nxd1 {[%clk 0:00:47]} 34. Ba3 {[%clk 0:00:16]}  Nxc3 {[%clk 0:00:36]} 35. Bxe7 {[%clk 0:00:16]}  Nxe2+ {[%clk 0:00:36]} 36. Rxe2 {[%clk 0:00:14]}  Re8 {[%clk 0:00:31]} 37. Bc5 {[%clk 0:00:13]}  b6 {[%clk 0:00:30]} 38. Bb4 {[%clk 0:00:13]}  a5 {[%clk 0:00:30]} 39. Bc3 {[%clk 0:00:14]}  a4 {[%clk 0:00:21]} 40. Kf4 {[%clk 0:00:14]}  Bd5 {[%clk 0:00:16]} 41. Bb4 {[%clk 0:00:11]}  b5 {[%clk 0:00:14]} 42. Rc2 {[%clk 0:00:11]}  Ra8 {[%clk 0:00:15]} 43. Rc3 {[%clk 0:00:11]}  a3 {[%clk 0:00:11]} 44. Bxa3 {[%clk 0:00:10]}  Ra4 {[%clk 0:00:11]} 45. Bc5 {[%clk 0:00:05]}  b4 {[%clk 0:00:11]} 46. Rc1 {[%clk 0:00:06]}  b3 {[%clk 0:00:09]} 47. Ke5 {[%clk 0:00:06]}  b2 {[%clk 0:00:07]} 48. Rf1 {[%clk 0:00:06]}  Ra8 {[%clk 0:00:05]} 49. h5 {[%clk 0:00:07]}  c3 {[%clk 0:00:04]} 50. Bb4 {[%clk 0:00:07]}  c2 {[%clk 0:00:04]} 51. g6 {[%clk 0:00:07]}  b1=Q {[%clk 0:00:04]} 52. gxh7+ {[%clk 0:00:07]}  Kxh7 {[%clk 0:00:05]} 53. Rf7 {[%clk 0:00:07]}  Qxb4 {[%clk 0:00:05]} 54. h6 {[%clk 0:00:06]}  Qb8+ {[%clk 0:00:05]} 0-1


[Site "https://www.chess.com"]

[Event "Titled Tuesday Blitz May 03 Late 2022"]
[White "Ezat, Mohamed"]
[Black "Zherebtsova, Alexandra"]
[WhiteFideId "10600906"]
[BlackFideId "24129518"]
[WhiteElo "2386"]
[BlackElo "2025"]
[Result "0-1"]
[Round "05"]
[TimeControl "180+1"]
[Date "2022.05.03"]
[WhiteClock "0:00:12"]
[BlackClock "0:00:02"]

1. d4 {[%clk 0:02:56]}  d5 {[%clk 0:02:52]} 2. c4 {[%clk 0:02:45]}  e6 {[%clk 0:02:46]} 3. Nc3 {[%clk 0:02:39]}  Nf6 {[%clk 0:02:42]} 4. cxd5 {[%clk 0:02:38]}  exd5 {[%clk 0:02:41]} 5. Bg5 {[%clk 0:02:38]}  c6 {[%clk 0:02:40]} 6. Qc2 {[%clk 0:02:38]}  h6 {[%clk 0:02:26]} 7. Bh4 {[%clk 0:01:58]}  Be7 {[%clk 0:02:21]} 8. e3 {[%clk 0:01:58]}  O-O {[%clk 0:02:15]} 9. Bd3 {[%clk 0:01:57]}  Re8 {[%clk 0:02:14]} 10. Nge2 {[%clk 0:01:56]}  Ne4 {[%clk 0:02:08]} 11. Bxe7 {[%clk 0:01:54]}  Qxe7 {[%clk 0:02:08]} 12. Bxe4 {[%clk 0:01:54]}  dxe4 {[%clk 0:02:07]} 13. Ng3 {[%clk 0:01:53]}  f5 {[%clk 0:02:00]} 14. O-O {[%clk 0:01:53]}  Be6 {[%clk 0:01:57]} 15. f3 {[%clk 0:01:52]}  exf3 {[%clk 0:01:41]} 16. Rxf3 {[%clk 0:01:52]}  g6 {[%clk 0:01:41]} 17. e4 {[%clk 0:01:52]}  fxe4 {[%clk 0:01:39]} 18. Qxe4 {[%clk 0:01:44]}  Bf7 {[%clk 0:01:22]} 19. Qf4 {[%clk 0:01:38]}  Kg7 {[%clk 0:01:11]} 20. Qg4 {[%clk 0:00:59]}  Qe6 {[%clk 0:00:45]} 21. Nh5+ {[%clk 0:00:56]}  Kh8 {[%clk 0:00:45]} 22. Qf4 {[%clk 0:00:50]}  gxh5 {[%clk 0:00:41]} 23. Qxf7 {[%clk 0:00:50]}  Qxf7 {[%clk 0:00:24]} 24. Rxf7 {[%clk 0:00:49]}  b6 {[%clk 0:00:18]} 25. Raf1 {[%clk 0:00:40]}  Na6 {[%clk 0:00:18]} 26. a3 {[%clk 0:00:38]}  Red8 {[%clk 0:00:15]} 27. Ne4 {[%clk 0:00:33]}  Kg8 {[%clk 0:00:10]} 28. Rb7 {[%clk 0:00:26]}  Rxd4 {[%clk 0:00:04]} 29. Nf6+ {[%clk 0:00:26]}  Kf8 {[%clk 0:00:04]} 30. Nxh5+ {[%clk 0:00:20]}  Kg8 {[%clk 0:00:03]} 31. Nf6+ {[%clk 0:00:19]}  Kf8 {[%clk 0:00:03]} 32. Nd5+ {[%clk 0:00:18]}  Kg8 {[%clk 0:00:03]} 33. Ne7+ {[%clk 0:00:17]}  Kh8 {[%clk 0:00:01]} 34. Ng6+ {[%clk 0:00:12]}  Kg8 {[%clk 0:00:02]} 0-1


[Site "https://www.chess.com"]